bitfinex/quotes_BTCUSD_20220109
["timestamp","ask_amount","ask_price","bid_price","bid_amount"]
[1641755073772,0.00121336,42004.0,41996.0,0.119037]
[1641755073973,0.29400445,42003.0,41996.0,0.119037]
[1641755074771,0.63674774,42003.0,41996.0,0.119037]
[1641755074972,0.63674774,42003.0,41993.0,0.78507545]
[1641755075217,0.63674774,42003.0,41994.0,0.059527]
[1641755075419,0.63674774,42003.0,42000.0,0.00021438]
[1641755076019,0.64574774,42003.0,42000.0,0.00021438]
[1641755077420,0.64574774,42003.0,42000.0,0.00042476]
[1641755077720,0.64574774,42003.0,42000.0,0.00021038]
[1641755077921,0.63674774,42003.0,42000.0,0.00021038]
[1641755078121,0.64474774,42003.0,42000.0,0.00021038]
[1641755078524,0.008,42003.0,42000.0,0.3279617]
[1641755078727,0.008,42003.0,42000.0,0.32795785]
[1641755079367,0.00126715,42010.0,42000.0,0.32795785]
[1641755079567,0.00126715,42010.0,42000.0,0.38747685]
[1641755079767,0.26112097,42009.0,42000.0,0.32795785]
[1641755080567,0.00826715,42010.0,42000.0,0.32795785]
[1641755080768,0.007,42010.0,42003.0,0.059515]
[1641755080969,0.007,42010.0,42003.0,0.05972152]
[1641755081371,0.45063261,42016.0,42003.0,0.05972152]
[1641755081568,0.31491337,42015.0,42003.0,0.05972152]
[1641755081768,0.63855051,42015.0,42003.0,0.05972152]
[1641755081968,0.63855051,42015.0,42004.0,0.00020652]
[1641755082169,0.74555051,42015.0,42006.0,0.059512]
[1641755082368,0.28866491,42011.0,42006.0,0.059512]
[1641755082568,0.28866491,42011.0,42004.0,0.00020652]
[1641755083014,0.28866491,42011.0,42007.0,0.0002065]
[1641755083216,0.36591616,42014.0,42007.0,0.0002065]
[1641755083615,0.46591616,42014.0,42007.0,0.0002065]
[1641755084020,0.47291616,42014.0,42007.0,0.0002065]
[1641755084216,0.26666322,42011.0,42007.0,0.0002065]
[1641755085618,0.73002965,42008.0,42007.0,0.0002065]
[1641755085818,1.48958204,42008.0,42007.0,0.0002065]
[1641755086018,1.59078708,42008.0,42007.0,0.0002065]
[1641755086468,1.59078708,42008.0,42005.0,0.0002065]
[1641755086674,0.385981,42007.0,42005.0,0.0002065]
[1641755086867,1.0273701,42006.0,42005.0,0.0002065]
[1641755087066,0.8633511,42006.0,42005.0,0.0002065]
[1641755087268,0.3773701,42006.0,42005.0,0.0002065]
[1641755087467,0.73123469,42008.0,42005.0,0.0002065]
[1641755087468,0.73002965,42008.0,42005.0,0.0002065]
[1641755087668,0.00030897,42012.0,42004.0,0.00020067]
[1641755088070,0.007,42008.0,42004.0,0.00020067]
[1641755088471,0.007,42008.0,42005.0,0.29969544]
[1641755088668,0.007,42008.0,42006.0,0.0002007]
[1641755088868,0.007,42008.0,42007.0,1.4724361]
[1641755089069,0.007,42008.0,42007.0,1.62365505]
[1641755089274,0.37323388,42018.0,42007.0,0.51489203]
[1641755089472,0.37323388,42018.0,42011.0,0.17849066]
[1641755089669,0.37323388,42018.0,42012.0,0.29073615]
[1641755089868,0.40938141,42019.0,42012.0,0.29073615]
[1641755090070,0.014,42018.0,42012.0,0.29073615]
[1641755090320,0.014,42018.0,42014.0,0.059496]
[1641755090519,0.37178085,42008.0,42007.0,1.01489203]
[1641755090720,0.014,42018.0,42008.0,1.1]
[1641755090919,0.014,42018.0,42009.0,0.35166668]
[1641755091320,0.40937943,42019.0,42013.0,0.059494]
[1641755091523,0.40937943,42019.0,42014.0,0.4279312]
[1641755091721,6.023e-05,42017.0,42014.0,0.4279312]
[1641755091929,6.023e-05,42017.0,42015.0,0.05948932]
[1641755092121,6.023e-05,42017.0,42015.0,0.14586932]
[1641755092722,6.023e-05,42017.0,42016.0,0.11898]
[1641755094168,0.00506023,42017.0,42016.0,0.12898]
[1641755095369,6.023e-05,42017.0,42016.0,0.11898]
[1641755096267,0.01406023,42017.0,42016.0,0.12598]
[1641755097468,6.023e-05,42017.0,42016.0,0.11898]
[1641755097721,1.11665666,42019.0,42016.0,0.11898]
[1641755098121,0.015,42017.0,42016.0,0.12598]
[1641755099121,0.015,42017.0,42016.0,0.007]
[1641755099323,0.8059259,42019.0,42013.0,0.118993]
[1641755099522,0.8059259,42019.0,42010.0,0.15]
[1641755100122,1.10372463,42019.0,42010.0,0.16]
[1641755100723,1.10372462,42019.0,42010.0,0.16]
[1641755101323,1.09472462,42019.0,42010.0,0.15]
[1641755101762,0.40443987,42019.0,42014.0,0.059502]
[1641755102161,0.41143987,42019.0,42014.0,0.059502]
[1641755103062,0.41143988,42019.0,42014.0,0.059502]
[1641755103462,0.40443988,42019.0,42014.0,0.059502]
[1641755104163,0.41443988,42019.0,42014.0,0.068502]
[1641755105621,0.41443988,42019.0,42014.0,0.059502]
[1641755105622,0.51443988,42019.0,42014.0,0.059502]
[1641755105832,0.40443988,42019.0,42012.0,0.059504]
[1641755106021,0.40571112,42019.0,42012.0,0.059504]
[1641755106219,0.41291189,42019.0,42014.0,0.01]
[1641755106419,0.41271112,42019.0,42014.0,0.01]
[1641755106821,0.44498378,42016.0,42014.0,0.01]
[1641755107022,1.219899,42015.0,42014.0,0.01]
[1641755107223,1.22110986,42015.0,42014.0,0.01]
[1641755107422,1.32110986,42015.0,42007.0,0.00020652]
[1641755107925,0.57814556,42011.0,42007.0,0.00020652]
[1641755108123,0.36334787,42009.0,42007.0,0.03620652]
[1641755108324,0.36334787,42009.0,42007.0,0.03641303]
[1641755108624,0.36334787,42009.0,42007.0,0.03620651]
[1641755109271,0.57814556,42011.0,42007.0,0.03620651]
[1641755109573,0.57814556,42011.0,42006.0,0.0002065]
[1641755110176,0.58714556,42011.0,42006.0,0.0232065]
[1641755110774,0.009,42011.0,42006.0,0.0232065]
[1641755111375,0.52777533,42014.0,42007.0,0.059511]
[1641755111776,0.31732616,42012.0,42007.0,0.059511]
[1641755112175,0.31732616,42012.0,42007.0,0.077511]
[1641755112821,0.31700632,42012.0,42007.0,0.0777175]
[1641755113320,0.31700632,42012.0,42007.0,0.0597175]
[1641755113918,0.1,42014.0,42007.0,0.0597175]
[1641755114120,0.007,42012.0,42007.0,0.0797175]
[1641755114820,0.007,42012.0,42007.0,0.4159214]
[1641755115020,0.007,42012.0,42007.0,0.4161279]
[1641755115222,0.007,42012.0,42007.0,0.0797175]
[1641755115425,0.39575103,42015.0,42007.0,0.0597175]
[1641755116022,0.29575103,42015.0,42007.0,0.0597175]
[1641755116222,0.29875103,42015.0,42007.0,0.0767175]
[1641755116473,0.29875103,42015.0,42007.0,0.41116519]
[1641755117074,0.29875103,42015.0,42007.0,0.4113717]
[1641755117273,0.32339923,42010.0,42007.0,0.07671751]
[1641755117473,0.32339923,42010.0,42007.0,0.00020651]
[1641755118276,0.32939923,42010.0,42006.0,0.0002065]
[1641755119475,0.32339923,42010.0,42006.0,0.00020651]
[1641755120076,0.32339923,42010.0,42006.0,0.05971851]
[1641755120331,0.007,42010.0,42006.0,0.05971851]
[1641755120730,0.007,42010.0,42007.0,0.33186501]
[1641755120928,0.007,42010.0,42006.0,0.05971851]
[1641755121528,0.39575103,42015.0,42006.0,0.05992501]
[1641755121729,0.33397851,42018.0,42011.0,0.059505]
[1641755121930,0.40443983,42019.0,42011.0,0.059505]
[1641755122131,0.006,42015.0,42011.0,0.059505]
[1641755122730,0.006,42015.0,42012.0,0.34218498]
[1641755123334,0.40443988,42019.0,42012.0,0.34218498]
[1641755123730,0.40443988,42019.0,42015.0,0.46394526]
[1641755123973,0.40443986,42019.0,42016.0,0.34408779]
[1641755124171,0.44143986,42019.0,42016.0,0.34408779]
[1641755125374,0.44143986,42019.0,42016.0,0.49408779]
[1641755125572,0.44143986,42019.0,42018.0,0.709486]
[1641755125773,0.43643986,42019.0,42018.0,0.40006796]
[1641755126075,0.39943986,42019.0,42018.0,0.40006796]
[1641755126273,0.43743986,42019.0,42018.0,0.40606796]
[1641755126677,0.43723911,42019.0,42018.0,0.40606796]
[1641755127478,0.39923911,42019.0,42018.0,0.40006796]
[1641755128328,0.39923911,42019.0,42018.0,0.42006796]
[1641755129425,0.39923911,42019.0,42018.0,0.40006796]
[1641755130228,0.39923911,42019.0,42018.0,0.41706796]
[1641755132265,0.39923911,42019.0,42018.0,0.43406796]
[1641755133465,0.39923911,42019.0,42018.0,0.40006796]
[1641755134266,0.39923911,42019.0,42018.0,0.41606796]
[1641755135715,0.39923911,42019.0,42018.0,0.075486]
[1641755136116,0.39923911,42019.0,42018.0,0.059486]
[1641755136318,0.39923911,42019.0,42018.0,0.4197151]
[1641755137518,0.39923911,42019.0,42018.0,0.3887151]
[1641755137919,0.39923911,42019.0,42018.0,0.5387151]
[1641755138319,0.39923911,42019.0,42018.0,0.5717151]
[1641755138973,0.00021032,42021.0,42020.0,0.00120011]
[1641755139179,0.00020027,42021.0,42020.0,1.59398093]
[1641755139373,0.5,42025.0,42021.0,1.1]
[1641755139573,0.5,42025.0,42021.0,2.358]
[1641755140074,0.5,42025.0,42024.0,0.15]
[1641755140273,0.5,42025.0,42024.0,0.00128307]
[1641755141471,0.024262,42025.0,42024.0,0.00128307]
[1641755141675,0.024262,42025.0,42024.0,0.37441443]
[1641755142273,0.024262,42025.0,42024.0,0.39441443]
[1641755144126,0.024262,42025.0,42024.0,0.37441443]
[1641755144329,0.024262,42025.0,42024.0,0.39141443]
[1641755145028,0.024262,42025.0,42024.0,0.54141443]
[1641755145529,0.024262,42025.0,42024.0,0.52441443]
[1641755146128,0.0002079,42027.0,42026.0,0.059467]
[1641755146328,0.0002079,42027.0,42026.0,0.39265634]
[1641755146572,0.0002079,42027.0,42026.0,0.059467]
[1641755147973,0.00020005,42029.0,42026.0,0.39209621]
[1641755148374,0.00020005,42029.0,42027.0,0.15]
[1641755148575,0.00020005,42029.0,42028.0,1.29686509]
[1641755148973,0.00020005,42029.0,42028.0,0.34686509]
[1641755149175,0.00621943,42030.0,42029.0,1.49000477]
[1641755149375,0.00621943,42030.0,42029.0,2.01391936]
[1641755149578,0.00621943,42030.0,42029.0,0.91391936]
[1641755149775,0.00621943,42030.0,42029.0,1.30989376]
[1641755150222,0.00621943,42030.0,42029.0,1.32389376]
[1641755150621,0.4429005,42032.0,42029.0,1.32389376]
[1641755150822,0.4429005,42032.0,42030.0,0.9]
[1641755151021,0.4429005,42032.0,42031.0,0.69252881]
[1641755151822,0.4429005,42032.0,42031.0,0.99252881]
[1641755152022,0.00080189,42038.0,42032.0,0.95]
[1641755152232,0.00160378,42038.0,42035.0,0.059456]
[1641755152427,0.00080189,42038.0,42037.0,1.00018813]
[1641755152623,0.00080189,42038.0,42037.0,0.77405296]
[1641755152823,0.00080189,42038.0,42037.0,0.92405296]
[1641755153023,0.00080189,42038.0,42037.0,1.21221808]
[1641755153223,0.00080189,42038.0,42037.0,0.92405296]
[1641755153423,0.00080189,42038.0,42037.0,0.55148587]
[1641755153623,0.004,42039.0,42038.0,0.059455]
[1641755154272,0.42030897,42045.0,42039.0,1.1]
[1641755154577,0.42030897,42045.0,42038.0,0.40926214]
[1641755154578,0.42030897,42045.0,42043.0,0.00123535]
[1641755154776,0.42030897,42045.0,42043.0,0.38900394]
[1641755155177,0.42030897,42045.0,42044.0,0.32678041]
[1641755155376,0.8068,42052.0,42046.0,1.258]
[1641755155574,0.30719827,42063.0,42048.0,0.02500026]
[1641755155773,0.4427,42055.0,42048.0,0.10744026]
[1641755156372,0.4427,42055.0,42048.0,0.12244026]
[1641755157277,0.44300897,42055.0,42048.0,0.12244026]
[1641755157474,0.44300897,42055.0,42048.0,0.10744026]
[1641755157724,0.00010523,42051.0,42050.0,0.05944]
[1641755158324,0.00010523,42051.0,42050.0,0.07344]
[1641755158723,0.00010523,42051.0,42050.0,0.62344]
[1641755158925,0.00010523,42053.0,42050.0,0.62344]
[1641755159224,0.00010523,42053.0,42051.0,0.37157154]
[1641755159624,0.00010523,42053.0,42051.0,0.05943792]
[1641755160026,0.00020574,42054.0,42051.0,0.05943792]
[1641755160229,0.00020574,42054.0,42052.0,0.059437]
[1641755160426,0.00020574,42054.0,42053.0,0.15]
[1641755160626,0.00020574,42054.0,42052.0,0.059437]
[1641755161125,0.00020574,42055.0,42052.0,0.059437]
[1641755161780,6.329e-05,42053.0,42052.0,0.059437]
[1641755162179,6.329e-05,42053.0,42052.0,0.072437]
[1641755162580,6.329e-05,42053.0,42052.0,0.41651521]
[1641755162781,6.329e-05,42053.0,42052.0,0.072437]
[1641755163180,6.329e-05,42053.0,42052.0,0.42383452]
[1641755163380,6.329e-05,42053.0,42052.0,0.072437]
[1641755163582,6.329e-05,42053.0,42052.0,0.059437]
[1641755163781,0.00019409,42055.0,42053.0,1.1]
[1641755163981,0.00019409,42055.0,42052.0,0.059437]
[1641755164381,0.00019792,42055.0,42052.0,0.077437]
[1641755164584,0.72718775,42063.0,42053.0,0.05]
[1641755164784,0.42,42063.0,42058.0,0.059434]
[1641755165434,0.42,42063.0,42054.0,0.1188599]
[1641755165634,0.26640398,42061.0,42054.0,0.1188599]
[1641755165835,0.26640398,42061.0,42054.0,0.0938599]
[1641755166036,0.26640398,42061.0,42058.0,0.059434]
[1641755166334,0.28340398,42061.0,42058.0,0.059434]
[1641755166535,0.36928801,42060.0,42058.0,0.059434]
[1641755166735,0.28340398,42061.0,42058.0,0.059434]
[1641755167136,0.35752349,42060.0,42058.0,0.059434]
[1641755167335,0.28340398,42061.0,42058.0,0.059434]
[1641755168237,0.28640398,42061.0,42058.0,0.067434]
[1641755169469,0.28640398,42061.0,42058.0,0.059434]
[1641755169670,0.26640398,42061.0,42058.0,0.059434]
[1641755170370,0.29040398,42061.0,42058.0,0.067434]
[1641755171471,0.29040398,42061.0,42058.0,0.059434]
[1641755171671,6.239e-05,42060.0,42058.0,0.059434]
[1641755172273,0.02006239,42060.0,42058.0,0.067434]
[1641755173524,0.00019549,42063.0,42060.0,0.55]
[1641755173721,0.00019549,42063.0,42061.0,0.059415]
[1641755174121,0.00019549,42063.0,42062.0,0.35144042]
[1641755174322,0.424,42069.0,42063.0,0.55]
[1641755174721,0.424,42069.0,42062.0,2.24385351]
[1641755175121,0.424,42069.0,42068.0,0.15]
[1641755176121,0.004,42069.0,42068.0,0.15]
[1641755176321,0.004,42069.0,42068.0,0.51437532]
[1641755176577,0.8627,42072.0,42068.0,0.20755]
[1641755176578,0.00010071,42071.0,42068.0,0.20755]
[1641755176879,0.00010071,42071.0,42069.0,0.059407]
[1641755177076,0.00010071,42071.0,42069.0,0.138697]
[1641755177278,0.00010071,42071.0,42070.0,0.32812078]
[1641755177479,0.4427,42072.0,42070.0,0.32812078]
[1641755177882,0.44280071,42072.0,42071.0,0.00129347]
[1641755178481,0.44280071,42072.0,42071.0,0.35813093]
[1641755178680,0.44280071,42072.0,42071.0,1.61613093]
[1641755178878,0.44280071,42072.0,42071.0,0.00129347]
[1641755179080,0.44280071,42072.0,42070.0,0.190205]
[1641755179481,0.44280071,42072.0,42070.0,0.178205]
[1641755179680,0.44280071,42072.0,42069.0,0.059407]
[1641755179882,0.44280071,42072.0,42068.0,0.059422]
[1641755179883,1.48969903,42071.0,42068.0,0.059422]
[1641755180084,0.385981,42070.0,42053.0,1.3019]
[1641755180327,0.00126061,42066.0,42053.0,1.30315086]
[1641755180925,0.58711578,42063.0,42053.0,1.30315086]
[1641755181126,0.58711578,42063.0,42062.0,0.0002123]
[1641755181330,0.23903943,42063.0,42062.0,0.0002123]
[1641755181528,0.00126061,42066.0,42062.0,0.0002123]
[1641755181728,6.127e-05,42065.0,42062.0,0.0002123]
[1641755182126,6.127e-05,42065.0,42061.0,0.059432]
[1641755182426,0.35681778,42063.0,42053.0,0.45905086]
[1641755182827,6.127e-05,42065.0,42053.0,0.45905086]
[1641755183032,6.127e-05,42065.0,42059.0,0.118858]
[1641755183729,0.25433726,42065.0,42059.0,0.118858]
[1641755184377,0.25433726,42065.0,42059.0,0.125858]
[1641755185377,0.00016557,42065.0,42059.0,0.125858]
[1641755185582,0.00016557,42065.0,42059.0,0.118858]
[1641755186378,0.0002644,42065.0,42059.0,0.126858]
[1641755186578,0.26262768,42065.0,42059.0,0.126858]
[1641755186778,0.38600503,42064.0,42059.0,0.126858]
[1641755186979,0.38600503,42064.0,42059.0,0.008]
[1641755187580,0.34146941,42061.0,42058.0,0.00042848]
[1641755187826,0.34146941,42061.0,42058.0,0.00021424]
[1641755188425,0.34146941,42061.0,42058.0,0.00721424]
[1641755188625,0.34146941,42061.0,42058.0,0.007]
[1641755188927,6.115e-05,42064.0,42058.0,0.007]
[1641755189628,6.115e-05,42064.0,42057.0,0.05965324]
[1641755189827,6.115e-05,42064.0,42058.0,0.00021032]
[1641755190027,0.30985913,42062.0,42058.0,0.00021032]
[1641755190226,6.115e-05,42064.0,42058.0,0.00021032]
[1641755190428,6.115e-05,42064.0,42059.0,0.059435]
[1641755191472,0.27426571,42063.0,42059.0,0.059435]
[1641755191672,0.27432673,42063.0,42059.0,0.059435]
[1641755192073,0.27432673,42063.0,42058.0,0.00620625]
[1641755192074,0.3628783,42062.0,42058.0,0.00620625]
[1641755192374,0.27432673,42063.0,42059.0,0.006]
[1641755192975,0.27432673,42063.0,42060.0,0.059434]
[1641755193974,6.102e-05,42063.0,42060.0,0.059434]
[1641755194375,6.102e-05,42063.0,42060.0,0.006]
[1641755195219,0.32538123,42063.0,42060.0,0.006]
[1641755195424,6.102e-05,42063.0,42060.0,0.006]
[1641755195621,6.102e-05,42063.0,42058.0,0.00020647]
[1641755196422,0.01206102,42063.0,42058.0,0.00780047]
[1641755196619,0.30132552,42063.0,42058.0,0.00780047]
[1641755196822,0.35901556,42062.0,42058.0,0.00780047]
[1641755197023,0.45901556,42062.0,42058.0,0.00780047]
[1641755197220,0.385981,42061.0,42058.0,0.00780047]
[1641755197622,0.385981,42061.0,42045.0,0.00125118]
[1641755197623,0.485981,42061.0,42045.0,0.00125118]
[1641755197820,0.485981,42061.0,42046.0,0.2977445]
[1641755198020,0.31979501,42055.0,42046.0,0.2977445]
[1641755198221,0.37165349,42054.0,42045.0,0.12014918]
[1641755198420,0.37133173,42054.0,42045.0,0.12014918]
[1641755198624,0.37133173,42054.0,42045.0,0.00125118]
[1641755198625,0.43078942,42054.0,42045.0,0.00125118]
[1641755199079,0.4261249,42054.0,42045.0,0.00125118]
[1641755199277,0.26959391,42060.0,42045.0,0.00125118]
[1641755199476,0.03410442,42061.0,42051.0,0.36662364]
[1641755199777,0.00020358,42061.0,42051.0,0.36662364]
[1641755199976,0.00020358,42061.0,42056.0,0.05944]
[1641755200379,0.01320358,42061.0,42056.0,0.05944]
[1641755200779,0.01340719,42061.0,42056.0,0.05944]
[1641755200980,0.01320361,42061.0,42056.0,0.05944]
[1641755201579,0.00020361,42061.0,42056.0,0.05944]
[1641755201780,6.066e-05,42060.0,42056.0,0.05944]
[1641755202378,0.00206066,42060.0,42056.0,0.05944]
[1641755203018,0.00206066,42060.0,42056.0,0.05965424]
[1641755203621,6.066e-05,42060.0,42056.0,0.05986456]
[1641755204019,6.066e-05,42060.0,42056.0,0.05965032]
[1641755204419,0.00406066,42060.0,42056.0,0.05965032]
[1641755204619,0.00406066,42060.0,42056.0,0.05964603]
[1641755205619,6.066e-05,42060.0,42056.0,0.05964603]
[1641755206479,0.00506066,42060.0,42056.0,0.05964603]
[1641755206873,6.053e-05,42059.0,42056.0,0.05964603]
[1641755207876,6.053e-05,42059.0,42056.0,0.05944]
[1641755208475,0.00506053,42059.0,42056.0,0.05944]
[1641755209678,6.053e-05,42059.0,42056.0,0.05944]
[1641755210523,0.00306053,42059.0,42056.0,0.05944]
[1641755211627,6.041e-05,42058.0,42056.0,0.05944]
[1641755212425,0.00306041,42058.0,42056.0,0.05944]
[1641755213628,6.041e-05,42058.0,42056.0,0.05944]
[1641755214371,0.00306041,42058.0,42056.0,0.05944]
[1641755214572,0.00306041,42058.0,42057.0,0.15]
[1641755215674,6.041e-05,42058.0,42057.0,0.15]
[1641755216474,0.00306041,42058.0,42057.0,0.15]
[1641755217277,0.00306041,42058.0,42056.0,0.05944]
[1641755217722,6.041e-05,42058.0,42056.0,0.05944]
[1641755218326,0.99506041,42060.0,42056.0,0.05944]
[1641755218626,0.003,42058.0,42056.0,0.05944]
[1641755220229,0.99506041,42060.0,42056.0,0.05944]
[1641755220429,0.003,42058.0,42056.0,0.05944]
[1641755220830,0.003,42058.0,42055.0,0.00020646]
[1641755221232,0.003,42058.0,42056.0,0.00020646]
[1641755222378,0.003,42058.0,42055.0,0.00020646]
[1641755222579,0.006,42058.0,42055.0,0.00020646]
[1641755222980,0.006,42058.0,42055.0,0.05964746]
[1641755223382,0.006,42058.0,42055.0,0.059441]
[1641755223681,0.99506041,42060.0,42055.0,0.059441]
[1641755224485,1.00206041,42060.0,42055.0,0.05964746]
[1641755225821,0.99506041,42060.0,42055.0,0.05964746]
[1641755226021,0.99506041,42060.0,42057.0,0.15]
[1641755226222,0.99506041,42060.0,42058.0,0.059435]
[1641755226521,0.99806041,42060.0,42058.0,0.059435]
[1641755226723,0.00020494,42059.0,42058.0,0.059435]
[1641755228526,0.00320494,42059.0,42058.0,0.059435]
[1641755229689,0.00020494,42059.0,42058.0,0.059435]
[1641755230588,0.00120494,42059.0,42058.0,0.059435]
[1641755232487,0.00220494,42059.0,42058.0,0.059435]
[1641755233742,0.00020494,42059.0,42058.0,0.059435]
[1641755234542,0.01020494,42059.0,42058.0,0.068435]
[1641755236245,0.01020494,42059.0,42058.0,0.059435]
[1641755236478,0.01120494,42059.0,42058.0,0.068435]
[1641755237482,0.01088255,42059.0,42058.0,0.068435]
[1641755237881,0.99506041,42060.0,42058.0,0.059435]
[1641755238480,1.00606041,42060.0,42058.0,0.067435]
[1641755239781,0.99506041,42060.0,42058.0,0.059435]
[1641755240225,0.00019628,42061.0,42058.0,0.059435]
[1641755240627,0.99506041,42059.0,42058.0,0.070435]
[1641755241826,0.99506041,42059.0,42058.0,0.059435]
[1641755242531,1.00406041,42059.0,42058.0,0.070435]
[1641755243127,1.00406041,42059.0,42058.0,0.220435]
[1641755243727,0.99506041,42059.0,42058.0,0.209435]
[1641755244478,1.00006041,42059.0,42058.0,0.226435]
[1641755245778,0.99506041,42059.0,42058.0,0.209435]
[1641755246579,1.00006041,42059.0,42058.0,0.228435]
[1641755246780,1.00026023,42059.0,42058.0,0.228435]
[1641755247829,0.99526023,42059.0,42058.0,0.209435]
[1641755248528,0.99926023,42059.0,42058.0,0.229435]
[1641755249729,0.99926023,42059.0,42058.0,0.209435]
[1641755249730,0.99526023,42059.0,42058.0,0.209435]
[1641755250532,0.99626023,42059.0,42058.0,0.209435]
[1641755251688,0.99526023,42059.0,42058.0,0.209435]
[1641755252490,0.99626023,42059.0,42058.0,0.209435]
[1641755253694,0.99526023,42059.0,42058.0,0.209435]
[1641755254593,0.99826023,42059.0,42058.0,0.209435]
[1641755255826,0.99526023,42059.0,42058.0,0.209435]
[1641755256428,0.99526023,42059.0,42058.0,0.54800331]
[1641755256630,0.99826023,42059.0,42058.0,1.64690788]
[1641755256829,0.99826023,42059.0,42058.0,1.79430788]
[1641755257028,0.52292623,42059.0,42058.0,1.89553983]
[1641755257232,0.52292623,42059.0,42058.0,1.92586931]
[1641755257429,0.04759023,42059.0,42058.0,1.89553983]
[1641755257834,0.00019628,42061.0,42060.0,1.258]
[1641755258031,0.40050693,42073.0,42061.0,1.1]
[1641755258230,0.6007604,42076.0,42061.0,1.1]
[1641755258231,0.40050693,42076.0,42068.0,0.059416]
[1641755258431,0.40050693,42076.0,42068.0,0.118506]
[1641755258833,0.28918264,42075.0,42068.0,0.118506]
[1641755259877,0.28918264,42075.0,42068.0,0.059416]
[1641755260677,0.29918264,42075.0,42068.0,0.069416]
[1641755261279,0.00020515,42074.0,42068.0,0.069416]
[1641755261878,0.00039181,42074.0,42068.0,0.059416]
[1641755262480,0.00020515,42073.0,42068.0,0.059416]
[1641755262727,0.00020515,42073.0,42068.0,0.070416]
[1641755264028,0.00020515,42073.0,42068.0,0.059416]
[1641755264729,0.00520716,42073.0,42068.0,0.071416]
[1641755265128,0.00520716,42073.0,42071.0,0.15]
[1641755265329,0.00520716,42073.0,42071.0,0.209418]
[1641755265527,0.00520716,42073.0,42071.0,0.15]
[1641755265731,0.28649212,42073.0,42071.0,0.15]
[1641755265931,0.28149212,42073.0,42071.0,0.15]
[1641755266577,0.01,42073.0,42071.0,0.01]
[1641755266782,0.00018645,42072.0,42071.0,0.01]
[1641755268381,0.00309958,42073.0,42071.0,0.01]
[1641755268580,0.014,42072.0,42071.0,0.008]
[1641755268779,0.014,42072.0,42071.0,0.47435434]
[1641755269780,0.42,42078.0,42071.0,0.46249992]
[1641755269979,0.42,42078.0,42071.0,0.118823]
[1641755270231,0.00020474,42075.0,42071.0,0.118823]
[1641755270633,0.00020474,42075.0,42071.0,0.126823]
[1641755271333,0.00020475,42075.0,42071.0,0.126823]
[1641755271732,0.00017733,42074.0,42071.0,0.126823]
[1641755271932,0.00017733,42074.0,42071.0,0.118823]
[1641755272133,0.00017733,42074.0,42071.0,0.118733]
[1641755272533,0.00017733,42074.0,42071.0,0.11646946]
[1641755272733,0.00017733,42074.0,42072.0,0.15]
[1641755273136,0.00017733,42074.0,42072.0,0.14984083]
[1641755273984,0.00017733,42074.0,42073.0,0.459411]
[1641755274584,0.00017733,42074.0,42073.0,0.472411]
[1641755275784,0.00017733,42074.0,42073.0,0.059411]
[1641755276586,0.00017733,42074.0,42073.0,0.076411]
[1641755276784,0.00037232,42076.0,42073.0,0.076411]
[1641755277930,0.00017733,42076.0,42073.0,0.059411]
[1641755278835,0.00017733,42076.0,42073.0,0.074411]
[1641755279832,0.00017733,42076.0,42073.0,0.059411]
[1641755280235,0.00017733,42076.0,42073.0,0.11881612]
[1641755280433,0.00017733,42076.0,42075.0,0.70602776]
[1641755280833,0.00017733,42076.0,42075.0,0.11881]
[1641755281976,0.06076544,42077.0,42075.0,0.11881]
[1641755282678,0.06076544,42077.0,42075.0,0.12681]
[1641755283878,0.06076544,42077.0,42075.0,0.11881]
[1641755284082,0.06057,42077.0,42075.0,0.11881]
[1641755284481,0.06057,42075.0,42070.0,0.0474]
[1641755284681,0.06057,42073.0,42065.0,0.1497]
[1641755284880,0.00123866,42072.0,42060.0,0.1497]
[1641755285079,0.00123866,42072.0,42064.0,0.00041282]
[1641755285337,0.06057,42068.0,42064.0,0.00020635]
[1641755286135,0.06057,42068.0,42064.0,0.00020632]
[1641755286538,0.41238009,42067.0,42064.0,0.00020632]
[1641755286740,0.41238009,42067.0,42064.0,0.02820632]
[1641755286741,0.06057,42066.0,42064.0,0.02820632]
[1641755286938,0.43110457,42065.0,42064.0,0.02820632]
[1641755287340,0.43464972,42065.0,42064.0,0.02820632]
[1641755287938,0.43464972,42065.0,42064.0,0.00020632]
[1641755288342,0.43307371,42065.0,42062.0,0.00020646]
[1641755288540,0.06057,42063.0,42062.0,0.00020646]
[1641755289578,0.06057,42063.0,42060.0,0.00020646]
[1641755290578,0.06057,42063.0,42059.0,0.00020647]
[1641755290780,0.06757,42063.0,42060.0,0.013]
[1641755291678,0.00017605,42062.0,42060.0,0.013]
[1641755291882,0.00017605,42062.0,42059.0,0.00020647]
[1641755292281,0.00017605,42062.0,42060.0,0.059432]
[1641755293533,0.06074605,42062.0,42060.0,0.059432]
[1641755294732,0.06074605,42062.0,42060.0,0.074432]
[1641755295333,0.06074605,42062.0,42061.0,0.5]
[1641755296778,0.06074605,42062.0,42061.0,1.015]
[1641755297178,0.06074605,42062.0,42061.0,0.515]
[1641755298579,0.06074605,42062.0,42061.0,0.5]
[1641755298781,0.06074605,42062.0,42061.0,0.516]
[1641755299280,0.06074605,42062.0,42061.0,0.575427]
[1641755299881,0.06074605,42062.0,42061.0,0.559427]
[1641755300546,0.06074605,42062.0,42061.0,0.5]
[1641755300749,0.06974605,42062.0,42061.0,0.869]
[1641755300947,0.06974605,42062.0,42061.0,0.519]
[1641755301948,0.06074605,42062.0,42061.0,0.5]
[1641755302749,0.06074605,42062.0,42061.0,0.522]
[1641755302951,0.06074605,42062.0,42061.0,0.63265978]
[1641755303151,0.06074605,42062.0,42061.0,1.88235978]
[1641755303849,0.06074605,42062.0,42061.0,2.00775978]
[1641755304684,0.06074605,42062.0,42061.0,2.02675978]
[1641755304888,0.06074605,42062.0,42061.0,2.45147764]
[1641755305085,0.06074605,42062.0,42061.0,1.20147764]
[1641755305685,0.06074605,42062.0,42061.0,1.54451833]
[1641755305884,0.06074605,42062.0,42061.0,1.52551833]
[1641755306686,0.06074605,42062.0,42061.0,1.55428455]
[1641755307087,1.06074605,42062.0,42061.0,1.55428455]
[1641755307928,1.06074605,42062.0,42061.0,1.18124386]
[1641755308529,1.06074605,42062.0,42061.0,1.52611731]
[1641755308730,1.06074605,42062.0,42061.0,1.55511731]
[1641755309528,1.06074605,42062.0,42061.0,1.65511731]
[1641755310034,1.05945925,42062.0,42061.0,1.62611731]
[1641755310831,1.05945925,42062.0,42061.0,1.65211731]
[1641755311680,1.0596309,42062.0,42061.0,1.65211731]